bitfinex-derivatives/quotes_ETHF0:USTF0_20240822
["timestamp","ask_amount","ask_price","bid_price","bid_amount"]
[1724329559326,0.94733,2638.3,2638.0,1.092]
[1724329559529,0.37893,2638.2,2638.1,1.8042]
[1724329561131,1.32627,2638.2,2638.1,0.3539]
[1724329561329,1.32638,2638.0,2637.9,1.3527551]
[1724329561844,4.5397,2638.1,2637.8,2.0854551]
[1724329561845,1.32643,2637.9,2637.8,2.0854551]
[1724329562036,1.32643,2637.9,2637.8,3.98124466]
[1724329562339,1.32643,2637.9,2637.8,4.47786409]
[1724329562340,0.37898,2637.9,2637.8,4.47786409]
[1724329563326,0.37898,2637.9,2637.8,4.47778243]
[1724329563534,0.3508,2638.3,2637.8,2.9877079]
[1724329563841,0.37895,2638.1,2638.0,2.08568831]
[1724329564035,0.37895,2638.1,2638.0,2.84358831]
[1724329566637,0.37895,2638.1,2638.0,0.3803]
[1724329567044,1.32638,2638.0,2637.9,0.99368831]
[1724329567235,1.32638,2638.0,2637.8,2.08568831]
[1724329567236,0.37898,2637.9,2637.8,2.08568831]
[1724329567428,1.09058,2637.9,2637.8,2.08568831]
[1724329568135,1.09058,2637.9,2637.8,3.98153211]
[1724329569627,4.88178,2637.9,2637.8,3.98153211]
[1724329569836,4.88178,2637.9,2637.8,2.08568831]
[1724329570542,4.88178,2637.9,2637.8,3.98155376]
[1724329570742,4.5028,2637.9,2637.8,4.47839792]
[1724329570935,4.88178,2637.9,2637.8,4.47839792]
[1724329571443,1.09058,2637.9,2637.8,4.47839792]
[1724329571944,1.09058,2637.9,2637.8,3.98197917]
[1724329572144,0.72978,2637.9,2637.8,3.98192729]
[1724329572437,0.72978,2637.9,2637.8,4.47834604]
[1724329573032,0.3508,2637.9,2637.8,4.47827822]
[1724329575043,0.72978,2637.9,2637.8,4.47827822]
[1724329576239,0.3508,2637.9,2637.8,4.47827822]
[1724329576538,0.3508,2637.9,2637.8,4.85726822]
[1724329576948,0.3508,2637.9,2637.8,5.22346822]
[1724329577147,0.3508,2637.9,2637.8,4.84447822]
[1724329577450,0.3508,2637.9,2637.8,5.22346822]
[1724329577946,0.3508,2637.9,2637.8,5.22342661]
[1724329578150,3.2078,2638.1,2637.8,5.22342661]
[1724329578151,3.2078,2638.1,2637.8,3.35390414]
[1724329578340,0.37895,2638.1,2638.0,0.9943956]
[1724329578536,0.37894,2638.2,2638.0,3.26899656]
[1724329578742,0.37894,2638.2,2638.1,1.4696]
[1724329580440,0.37894,2638.2,2638.1,1.4648]
[1724329581943,0.37894,2638.2,2638.1,1.092]
[1724329582143,0.37895,2638.1,2638.0,1.4742]
[1724329582447,3.94505,2638.1,2638.0,1.4742]
[1724329583442,0.37896,2638.0,2637.9,2.0863956]
[1724329583648,0.37896,2638.0,2637.9,3.98213731]
[1724329584251,0.37896,2638.0,2637.9,2.98774171]
[1724329584755,0.37896,2638.0,2637.9,3.98216665]
[1724329585144,0.37896,2638.0,2637.9,4.47933511]
[1724329585455,6.20958,2638.0,2637.9,0.99441739]
[1724329585640,0.37898,2637.9,2637.8,2.08641739]
[1724329587855,3.58678,2637.9,2637.8,2.08641739]
[1724329590853,3.58678,2637.9,2637.8,3.98226378]
[1724329591644,3.58678,2637.9,2637.8,2.08641739]
[1724329593248,3.58678,2637.9,2637.8,3.98224247]
[1724329593449,3.58678,2637.9,2637.8,2.08641739]
[1724329593760,0.37898,2637.9,2637.8,3.98226621]
[1724329596155,0.37894,2638.2,2638.0,0.37896]
[1724329596363,0.37894,2638.2,2638.1,1.4641]
[1724329596563,0.37894,2638.2,2638.1,2.1725]
[1724329603167,0.37894,2638.2,2638.1,3.16675273]
[1724329603576,0.37894,2638.2,2638.1,2.1725]
[1724329603764,1.32628,2638.2,2638.1,1.0805]
[1724329605166,1.32628,2638.2,2638.1,0.7084]
[1724329609259,1.32628,2638.2,2638.1,1.8004]
[1724329609468,1.32628,2638.2,2638.1,2.79465273]
[1724329610068,1.32628,2638.2,2638.1,1.8004]
[1724329610271,1.32628,2638.2,2638.1,0.7084]
[1724329611364,2.41828,2638.2,2638.1,0.7084]
[1724329614274,0.94741,2638.1,2637.8,1.37685273]
[1724329614462,0.94741,2638.1,2637.9,1.4736]
[1724329614463,0.37896,2638.0,2637.9,1.4736]
[1724329614768,0.37896,2638.0,2637.9,2.46785273]
[1724329615162,1.32638,2638.0,2637.9,0.3816]
[1724329615866,1.32648,2637.8,2637.7,0.99855331]
[1724329616061,4.53428,2637.8,2637.7,0.99855331]
[1724329616263,3.58679,2637.8,2637.7,0.99855331]
[1724329616464,0.37899,2637.8,2637.7,2.09055331]
[1724329616666,0.37899,2637.8,2637.7,4.48374276]
[1724329617466,0.37899,2637.8,2637.7,2.99214936]
[1724329617668,0.37899,2637.8,2637.7,4.48374276]
[1724329617970,0.37899,2637.8,2637.7,2.99214936]
[1724329618176,0.37899,2637.8,2637.7,3.98642697]
[1724329618679,0.37899,2637.9,2637.7,4.36543697]
[1724329618877,0.37899,2637.9,2637.8,1.7099468]
[1724329619774,0.37899,2637.9,2637.8,0.7157]
[1724329620269,1.32644,2637.9,2637.8,0.7157]
[1724329621076,1.32648,2637.8,2637.7,0.00430058]
[1724329621267,5.97618,2637.8,2637.7,0.00430058]
[1724329621574,9.76738,2637.8,2637.7,0.00430058]
[1724329623070,6.55958,2637.8,2637.7,0.00430058]
[1724329623270,9.76738,2637.8,2637.7,0.00430058]
[1724329626374,8.67538,2637.8,2637.7,0.00430058]
[1724329627196,4.88418,2637.8,2637.7,0.00430058]
[1724329628877,8.67538,2637.8,2637.7,0.00430058]
[1724329629186,4.88418,2637.8,2637.7,0.00430058]
[1724329629888,8.67538,2637.8,2637.7,0.00430058]
[1724329631272,4.88418,2637.8,2637.7,0.00430058]
[1724329633078,4.88898,2637.8,2637.7,0.00430058]
[1724329638286,10.71967,2637.8,2637.7,0.00430058]
[1724329638488,10.71967,2637.8,2637.4,0.00568386]
[1724329638489,2.27424,2637.5,2637.4,0.00568386]
[1724329638694,0.94772,2637.2,2636.6,0.9942468]
[1724329638897,0.94772,2637.2,2636.4,1.4915934]
[1724329638898,0.37916,2636.6,2636.5,0.9942468]
[1724329639086,0.37916,2636.6,2636.4,0.7538]
[1724329639087,0.37918,2636.5,2636.4,0.7538]
[1724329639289,0.37918,2636.5,2636.4,0.3794]
[1724329639490,0.38204325,2636.5,2636.4,0.00275144]
[1724329639694,5.12280325,2636.5,2636.4,0.00275144]
[1724329640004,10.12280325,2636.5,2636.4,0.00275144]
[1724329641494,0.37921,2636.3,2636.2,0.00568386]
[1724329641698,3.58701,2636.3,2636.2,0.00568386]
[1724329642000,7.38061,2636.3,2636.2,0.00568386]
[1724329642398,7.38061,2636.3,2636.2,0.00915184]
[1724329646196,3.2078,2636.3,2636.2,0.00915184]
[1724329649808,3.2078,2636.3,2636.2,4.18197184]
[1724329651200,0.00286325,2636.5,2636.3,0.3792]
[1724329651706,0.00286325,2636.5,2636.4,4.1779]
[1724329653004,0.00286325,2636.5,2636.4,4.55709]
[1724329653520,0.00568386,2636.7,2636.6,0.37916]
[1724329653895,0.00568386,2636.7,2636.6,9.17196]
[1724329654293,0.0097236,2636.7,2636.6,9.17196]
[1724329654499,3.2078,2637.0,2636.9,0.37912]
[1724329654696,3.2078,2637.4,2636.7,0.37914]
[1724329654998,0.37914,2636.8,2636.5,0.75377]
[1724329655201,0.37915,2636.7,2636.5,4.54657]
[1724329655396,0.3827413,2636.7,2636.5,0.75377]
[1724329655702,0.3827413,2636.7,2636.5,4.54657]
[1724329655899,0.37916,2636.6,2636.5,0.3746]
[1724329656208,0.37916,2636.6,2636.5,0.75378]
[1724329656402,0.37916,2636.6,2636.5,4.54658]
[1724329657002,0.0035913,2636.7,2636.4,0.3851]
[1724329657003,0.37918,2636.5,2636.4,0.3851]
[1724329657504,0.37918,2636.5,2636.4,4.1779]
[1724329657801,0.0035913,2636.7,2636.4,4.92409]
[1724329657802,0.37918,2636.6,2636.4,4.92409]
[1724329658010,0.37918,2636.6,2636.4,1.13129]
[1724329658409,0.37918,2636.5,2636.4,1.13129]
[1724329658807,0.37918,2636.5,2636.4,4.92409]
[1724329660121,0.37917,2636.6,2636.4,4.92409]
[1724329660417,0.37917,2636.6,2636.4,1.13129]
[1724329660615,0.37918,2636.5,2636.4,1.13129]
[1724329661004,0.37918,2636.5,2636.4,4.92409]
[1724329661799,0.37918,2636.5,2636.4,0.7521]
[1724329663010,0.37918,2636.5,2636.4,1.13129]
[1724329664715,0.37918,2636.5,2636.4,0.7521]
[1724329665419,3.2078,2636.5,2636.2,0.00915184]
[1724329665617,1.32724,2636.3,2636.2,0.00915184]
[1724329666015,6.06887,2636.3,2636.2,0.00915184]
[1724329667021,5.12084,2636.3,2636.2,0.00915184]
[1724329667315,4.17281,2636.3,2636.2,0.00915184]
[1724329667533,0.37921,2636.3,2636.2,0.00915184]
[1724329667711,0.37921,2636.3,2636.2,0.38855184]
[1724329670219,3.2078,2636.5,2636.2,0.76776184]
[1724329670220,0.3792,2636.4,2636.2,0.76776184]
[1724329670622,0.37921,2636.3,2636.2,0.38855184]
[1724329672625,1.32724,2636.3,2636.2,0.38855184]
[1724329673530,0.37921,2636.3,2636.2,0.38855184]
[1724329674618,1.32724,2636.3,2636.2,0.38855184]
[1724329674817,1.67804,2636.3,2636.2,0.00915184]
[1724329676418,6.41967,2636.3,2636.2,0.00915184]
[1724329678220,5.47164,2636.3,2636.2,0.00915184]
[1724329678529,1.67804,2636.3,2636.2,0.00915184]
[1724329682039,3.2078,2636.5,2636.2,0.00915184]
[1724329682244,3.2078,2636.5,2636.2,0.38836184]
[1724329682451,3.2078,2636.5,2636.3,1.1151]
[1724329682452,0.3792,2636.4,2636.3,1.1151]
[1724329682744,3.2078,2636.5,2636.3,1.1151]
[1724329682745,3.58699,2636.5,2636.3,1.1151]
[1724329683048,3.58699,2636.5,2636.3,0.7359]
[1724329683049,0.37919,2636.4,2636.3,0.7359]
[1724329683248,0.37919,2636.4,2636.3,0.3506]
[1724329683648,0.37919,2636.4,2636.2,0.00915184]
[1724329683649,0.37921,2636.3,2636.2,0.00915184]
[1724329684044,1.32724,2636.3,2636.2,0.00915184]
[1724329684245,1.68024,2636.3,2636.2,0.00915184]
[1724329687159,0.37921,2636.3,2636.2,0.00915184]
[1724329687455,0.0048,2636.4,2636.3,0.37921]
[1724329687957,0.0048,2636.4,2636.3,4.17201]
[1724329689861,0.0048,2636.4,2636.3,9.17201]
[1724329690058,0.0048,2636.4,2636.3,10.1662568]
[1724329690557,0.0035913,2636.7,2636.6,0.37916]
[1724329691154,0.0035913,2636.7,2636.5,0.37917]
[1724329691652,0.3827413,2636.7,2636.4,0.37918]
[1724329691854,0.0035913,2636.7,2636.3,0.99257471]
[1724329692063,0.0035913,2636.7,2636.2,0.38837184]
[1724329692064,0.37919,2636.5,2636.2,1.38094655]
[1724329692562,0.37919,2636.5,2636.3,3.7928]
[1724329692952,0.37919,2636.5,2636.4,3.7928]
[1724329694353,0.0035913,2636.7,2636.4,3.7928]
[1724329694661,0.37917,2636.6,2636.3,1.37177471]
[1724329694853,0.37918,2636.5,2636.3,0.3792]
[1724329695249,0.37918,2636.5,2636.4,3.7928]
[1724329697149,0.37918,2636.5,2636.4,4.17199]
[1724329697355,0.0035913,2636.7,2636.6,0.37916]
[1724329698163,0.0035913,2636.7,2636.6,4.17196]
[1724329698358,0.0035913,2636.7,2636.6,0.37916]
[1724329698567,0.0035913,2636.7,2636.6,5.16453471]
[1724329698898,0.0035913,2636.7,2636.6,7.06097591]
[1724329699251,0.0035913,2636.7,2636.6,5.16453471]
[1724329700664,0.3827413,2636.7,2636.6,4.78537471]
[1724329700961,0.3827413,2636.7,2636.6,4.17196]
[1724329701861,0.0035913,2636.7,2636.6,10.16453471]
[1724329702658,0.3827413,2636.7,2636.6,5.16453471]
[1724329703962,0.3827413,2636.7,2636.6,10.16453471]
[1724329704273,0.3827413,2636.7,2636.6,5.16453471]
[1724329704563,0.3827413,2636.7,2636.6,1.37173471]
[1724329704753,0.3827413,2636.7,2636.6,0.37916]
[1724329705969,0.0035913,2636.7,2636.6,0.37916]
[1724329707967,0.3827413,2636.7,2636.6,0.37916]
[1724329708667,0.37918,2636.5,2636.4,0.99257471]
[1724329708869,0.94792,2636.6,2636.2,1.00172655]
[1724329708870,0.37921,2636.3,2636.2,1.00172655]
[1724329709067,0.94792,2636.6,2636.2,0.38837184]
[1724329709373,0.37921,2636.3,2636.2,0.00915184]
[1724329716769,0.37921,2636.3,2636.2,0.38837184]
[1724329718264,3.58698,2636.5,2636.4,0.37919]
[1724329718476,3.2078,2636.5,2636.4,4.17199]
[1724329718868,0.37917,2636.6,2636.4,0.37919]
[1724329720093,0.3827513,2636.7,2636.5,0.37918]
[1724329720282,0.0035913,2636.7,2636.6,0.37916]
[1724329720573,0.0035913,2636.7,2636.6,4.17196]
[1724329721877,0.0035913,2636.7,2636.6,5.16453471]
[1724329722176,3.2078,2637.4,2636.6,12.18076024]
[1724329722385,3.58686,2637.4,2636.8,0.99217103]
[1724329722572,3.58686,2637.4,2637.0,0.3791]
[1724329722573,0.37906,2637.3,2637.0,0.3791]
[1724329722775,0.37906,2637.3,2636.9,0.37911]
[1724329722975,0.37908,2637.2,2636.9,0.37911]
[1724329723281,0.3791,2637.1,2636.8,0.99217103]
[1724329723475,0.3791,2637.1,2636.8,1.37130103]
[1724329724077,0.37908,2637.2,2636.9,0.37912]
[1724329725072,0.37909,2637.1,2636.8,1.37130103]
[1724329725277,0.37909,2637.2,2636.9,0.37912]
[1724329726479,0.00388093,2637.3,2637.1,0.37908]
[1724329726681,0.00388093,2637.3,2636.8,0.99217103]
[1724329726883,0.00388093,2637.3,2637.2,0.37908]
[1724329727389,0.00388093,2637.3,2637.2,4.17108]
[1724329727973,0.00388093,2637.3,2637.0,0.99217103]
[1724329728179,0.37908,2637.2,2636.9,1.37128103]
[1724329728581,0.37908,2637.2,2636.9,0.37911]
[1724329728781,0.00388093,2637.3,2636.9,0.37911]
[1724329728972,0.37909,2637.1,2636.9,0.37911]
[1724329729172,0.37909,2637.2,2637.0,0.3791]
[1724329730288,0.00388093,2637.3,2636.8,0.99217103]
[1724329730489,0.37908,2637.2,2636.8,0.99217103]
[1724329730689,0.37908,2637.2,2637.0,0.3791]
[1724329730884,0.37909,2637.1,2637.0,0.3791]
[1724329731092,0.37909,2637.1,2636.9,0.37911]
[1724329731390,0.37909,2637.1,2636.9,0.37912]
[1724329731885,0.37909,2637.1,2637.0,0.37911]
[1724329732082,0.37909,2637.1,2636.9,0.37911]
[1724329732388,0.37909,2637.1,2636.7,4.19997103]
[1724329732584,0.37909,2637.2,2637.0,0.37909]
[1724329733887,0.37909,2637.2,2637.1,0.37909]
[1724329739194,0.3791,2637.1,2637.0,0.3791]
[1724329739484,0.37909,2637.2,2637.1,0.37909]
[1724329740484,0.00868093,2637.3,2636.8,1.94001103]
[1724329740689,0.38775093,2637.3,2637.2,0.37908]
[1724329741114,0.00868093,2637.3,2637.2,0.37908]
[1724329741282,0.00868093,2637.3,2637.1,0.37908]
[1724329741487,0.38775093,2637.3,2637.1,0.37908]
[1724329742694,0.00868093,2637.3,2637.1,0.37908]
[1724329742882,0.38775093,2637.3,2637.1,0.37908]
[1724329743085,0.38775093,2637.3,2637.0,0.37909]
[1724329743291,0.37908,2637.2,2637.0,0.37909]
[1724329743487,0.37909,2637.1,2636.9,0.37911]
[1724329744193,0.00868093,2637.3,2636.8,0.37913]
[1724329744390,0.00868093,2637.3,2636.9,0.37912]
[1724329744592,0.3791,2637.1,2636.9,0.37912]
[1724329744798,0.3791,2637.1,2636.7,0.99217103]
[1724329744799,0.37911,2637.0,2636.8,0.37912]
[1724329745202,0.37913,2636.9,2636.7,0.37914]
[1724329745495,0.37913,2636.9,2636.8,0.37914]
[1724329745894,0.37913,2636.9,2636.6,0.99217103]
[1724329745895,0.37914,2636.8,2636.7,0.37915]
[1724329746097,0.37913,2636.9,2636.8,0.37914]
[1724329746400,0.95636093,2637.3,2636.8,0.37914]
[1724329746586,0.37908,2637.2,2637.1,0.37908]
[1724329747089,0.00868093,2637.3,2637.1,0.37908]
[1724329747294,0.37908,2637.2,2637.1,0.37908]
[1724329747494,0.38775093,2637.3,2637.2,0.37908]
[1724329747795,0.00868093,2637.3,2637.2,0.37908]
[1724329747984,0.00868093,2637.3,2637.2,7.37888]
[1724329748590,0.00868093,2637.3,2637.2,3.2078]
[1724329748795,0.38774093,2637.3,2637.2,3.2078]
[1724329750595,0.00868093,2637.3,2637.2,3.2078]
[1724329751697,0.00868093,2637.3,2637.1,0.37908]
[1724329751698,0.38774093,2637.3,2637.1,0.37908]
[1724329752797,0.00868093,2637.3,2637.1,0.37908]
[1724329753203,0.00868093,2637.3,2637.2,0.37908]
[1724329754414,0.38774093,2637.3,2637.2,0.37908]
[1724329754698,0.00868093,2637.3,2637.2,0.37908]
[1724329755689,0.38775093,2637.3,2637.0,0.99217103]
[1724329755904,0.38775093,2637.3,2637.1,0.37908]
[1724329756107,0.38775093,2637.3,2637.2,0.37908]
[1724329756599,0.38775093,2637.3,2637.1,0.37908]
[1724329757002,0.38775093,2637.3,2637.2,0.37908]
[1724329757196,0.37908,2637.2,2637.1,0.37909]
[1724329758897,0.38776093,2637.3,2636.8,0.99217103]
[1724329759203,0.37908,2637.2,2636.8,0.99217103]
[1724329759508,0.37908,2637.2,2637.1,0.37909]
[1724329763606,0.38295093,2637.3,2637.2,0.37908]
[1724329765210,0.38295093,2637.3,2637.2,1.37125103]
[1724329765502,0.38295093,2637.3,2637.2,3.26731907]
[1724329765708,0.38295093,2637.3,2637.2,1.37125103]
[1724329765897,0.38295093,2637.3,2637.2,2.27514829]
[1724329766094,0.38295093,2637.3,2637.2,3.26850757]
[1724329766311,0.38295093,2637.3,2637.2,3.76674169]
[1724329767410,0.00388093,2637.3,2637.2,3.76674169]
[1724329767605,0.38294093,2637.3,2637.2,3.76674169]
[1724329767809,0.00388093,2637.3,2637.2,3.76674169]
[1724329768005,0.38294093,2637.3,2637.2,3.76676423]
[1724329768203,0.00388093,2637.3,2637.2,3.76676423]
[1724329772008,0.38294093,2637.3,2637.2,3.76676423]
[1724329772202,0.38294093,2637.3,2637.2,2.8901845]
[1724329772402,0.38294093,2637.3,2637.2,1.89609083]
[1724329772615,0.37908,2637.2,2637.1,1.4915934]
[1724329772919,0.37908,2637.2,2637.1,3.3877922]
[1724329773713,0.37908,2637.2,2637.1,3.7668822]
[1724329776008,0.37908,2637.2,2637.1,3.76644462]
[1724329776609,0.38295093,2637.3,2637.2,0.37908]
[1724329776810,0.00388093,2637.3,2637.2,3.76639037]
[1724329777428,0.00388093,2637.3,2637.2,3.76625933]
[1724329778817,0.00388093,2637.3,2637.2,6.06714776]
[1724329779017,0.00388093,2637.3,2637.2,8.05190153]
[1724329779321,0.00388093,2637.3,2637.2,10.80673191]
[1724329780218,0.94735,2638.2,2637.8,0.37898]
[1724329780219,0.9474,2638.1,2637.8,0.37898]
[1724329780421,3.2078,2638.2,2637.8,0.99391747]
[1724329780614,0.94732,2638.3,2637.8,0.37898]
[1724329780615,3.2078,2637.9,2637.8,0.37898]
[1724329780814,3.58678,2637.9,2637.7,0.38468386]
[1724329781112,0.37898,2637.9,2637.7,0.38468386]
[1724329781311,0.38199395,2637.9,2637.7,0.38468386]
[1724329781918,0.38199395,2637.9,2637.8,0.37899]
[1724329782119,0.00301395,2637.9,2637.8,0.37899]
[1724329782313,0.38199395,2637.9,2637.8,0.37899]
[1724329783924,0.37899,2637.8,2637.7,0.00568386]
[1724329784413,5.11768,2637.8,2637.7,0.00568386]
[1724329786122,11.06517,2637.8,2637.7,0.00568386]
[1724329786324,11.06517,2637.8,2637.1,1.49087621]
[1724329786325,0.37906,2637.3,2637.1,1.37300747]
[1724329786513,0.37905,2637.4,2637.2,1.37299747]
[1724329787023,3.21081395,2637.9,2637.2,1.37299747]
[1724329787024,0.37906,2637.3,2637.2,1.37299747]
[1724329787318,0.37906,2637.3,2637.2,0.99391747]
[1724329787822,0.37906,2637.3,2637.1,0.99391747]
[1724329788022,0.37906,2637.4,2637.2,1.37299747]
[1724329788227,0.38472386,2637.5,2637.3,0.37906]
[1724329788417,0.38472386,2637.5,2637.3,1.37297747]
[1724329788630,0.37905,2637.4,2637.3,0.99391747]
[1724329789919,0.37905,2637.4,2637.3,1.37297747]
[1724329790130,0.38473386,2637.5,2637.3,1.37297747]
[1724329790430,0.38473386,2637.5,2637.3,1.37296747]
[1724329790722,0.38472386,2637.5,2637.3,1.37296747]
[1724329791031,0.37905,2637.4,2637.3,0.99391747]
[1724329791625,0.37905,2637.4,2637.2,1.37298747]
[1724329792026,0.0048,2637.3,2637.2,1.37298747]
[1724329793632,0.38386,2637.3,2637.2,3.26915243]
[1724329794433,0.0048,2637.3,2637.2,3.26915243]
[1724329794732,0.0048,2637.3,2637.2,1.37298747]
[1724329796425,0.38386,2637.3,2637.2,1.37298747]
[1724329796630,0.0048,2637.3,2637.2,1.37298747]
[1724329796825,0.0048,2637.3,2637.2,3.26914689]
[1724329797728,0.0048,2637.3,2637.2,3.76610563]
[1724329800226,0.0048,2637.3,2637.2,1.89615942]
[1724329800227,4.53932,2637.3,2637.2,1.89615942]
[1724329800438,0.9477,2637.2,2637.0,0.00568386]
[1724329800649,1.32683,2637.1,2637.0,0.00568386]
[1724329800834,3.2126,2637.3,2637.0,0.00568386]
[1724329801333,1.32683,2637.1,2637.0,0.00568386]
[1724329801740,10.11883,2637.1,2637.0,0.00568386]
[1724329802036,5.11883,2637.1,2637.0,0.00568386]
[1724329802331,11.06657,2637.1,2637.0,0.00568386]
[1724329802636,11.06657,2637.1,2636.3,0.99358625]
[1724329802637,0.37919,2636.4,2636.3,0.99358625]
[1724329802836,0.37919,2636.4,2636.2,0.00346798]
[1724329802837,3.2078,2636.6,2636.2,0.99705423]
[1724329803034,3.2078,2636.6,2636.2,0.00346798]
[1724329803339,0.37919,2636.5,2636.2,0.00346798]
[1724329803535,3.58697,2636.6,2636.2,0.00346798]
[1724329803729,3.2078,2636.6,2636.2,0.38268798]
[1724329804030,3.2078,2636.6,2636.2,0.99705423]
[1724329804234,3.2078,2636.6,2636.3,0.3792]
[1724329804421,3.2078,2636.6,2636.3,0.99358625]
[1724329804626,3.2078,2636.6,2636.4,0.37918]
[1724329805122,3.2078,2636.6,2636.2,0.99705423]
[1724329805324,3.2078,2636.6,2636.2,0.00346798]
[1724329805732,3.2078,2637.0,2636.9,0.37912]
[1724329805939,0.0048,2637.3,2636.5,0.99358625]
[1724329806151,3.2078,2637.1,2636.6,0.99358625]
[1724329806532,0.37915,2636.7,2636.5,0.99358625]
[1724329806727,3.58694,2636.8,2636.3,1.37278625]
[1724329806927,3.2078,2636.8,2636.3,0.99358625]
[1724329807129,3.2078,2636.8,2636.2,0.99705423]
[1724329807323,3.2078,2636.8,2636.3,2.89015045]
[1724329807529,3.2078,2636.8,2636.3,0.99358625]
[1724329807942,3.2078,2636.5,2636.2,0.00346798]
[1724329808445,0.3792,2636.4,2636.2,0.00346798]
[1724329808652,3.2078,2636.5,2636.2,0.00346798]
[1724329808653,3.58698,2636.5,2636.2,0.00346798]
[1724329808841,0.37916,2636.7,2636.3,0.3792]
[1724329809439,3.58694,2636.8,2636.4,0.37918]
[1724329809640,0.37915,2636.7,2636.3,0.3792]
[1724329809838,3.2078,2636.8,2636.2,0.00346798]
[1724329810039,3.2078,2636.8,2636.4,3.2078]
[1724329810346,0.37916,2636.7,2636.4,3.2078]
[1724329810553,0.37917,2636.6,2636.4,3.2078]
[1724329810743,0.37916,2636.7,2636.4,3.2078]
[1724329811136,0.37916,2636.7,2636.4,3.58699]
[1724329811439,0.37916,2636.7,2636.4,3.2078]
[1724329811843,3.2078,2637.1,2636.5,3.7928]
[1724329812041,3.2078,2637.1,2637.0,0.37911]
[1724329812342,3.2078,2637.1,2636.9,0.37911]
[1724329812533,3.5869,2637.1,2636.8,0.37913]
[1724329812740,3.2078,2637.1,2636.8,0.37913]
[1724329813034,3.2078,2637.1,2636.6,0.99358625]
[1724329813035,3.2078,2637.1,2636.9,0.37911]
[1724329813239,3.58689,2637.1,2636.8,0.37913]
[1724329813637,3.58689,2637.1,2636.7,0.99358625]
[1724329813638,0.37911,2637.0,2636.7,0.37914]
[1724329813935,3.5869,2637.1,2636.8,0.37913]
[1724329814332,3.2078,2637.1,2636.6,0.99358625]
[1724329814539,0.00568386,2637.5,2637.3,0.37906]
[1724329814540,3.2078,2637.4,2637.3,0.37906]
[1724329814933,0.00568386,2637.5,2637.4,0.37905]
[1724329815138,0.00568386,2637.5,2637.4,4.17025]
[1724329815343,0.00301395,2637.9,2637.8,0.37899]
[1724329815543,0.00301395,2637.9,2637.4,0.99358625]
[1724329815742,0.00301395,2637.9,2637.4,0.37905]
[1724329816049,0.00301395,2637.9,2637.5,0.37903]
[1724329816249,0.379,2637.8,2637.5,0.37903]
[1724329816544,0.00301395,2637.9,2637.4,0.00568386]
[1724329816738,0.37903,2637.5,2637.4,0.00568386]
[1724329816941,0.00301395,2637.9,2637.4,0.00568386]
[1724329817145,0.00301395,2637.9,2637.7,0.379]
[1724329817346,0.379,2637.8,2637.5,0.37903]
[1724329817548,0.379,2637.8,2637.6,0.37902]
[1724329817937,0.379,2637.8,2637.5,0.37903]
[1724329818134,0.95046395,2637.9,2637.4,0.00568386]
[1724329818341,0.37903,2637.6,2637.4,0.00568386]
[1724329818554,0.37903,2637.6,2637.4,0.38473386]
[1724329818840,0.95046395,2637.9,2637.4,0.00568386]
[1724329819241,0.37902,2637.7,2637.5,0.37903]
[1724329819442,0.37902,2637.7,2637.4,0.00568386]
[1724329819742,0.37902,2637.7,2637.5,0.37903]
[1724329820243,0.37902,2637.6,2637.4,0.38472386]
[1724329820443,0.37903,2637.5,2637.4,0.00568386]
[1724329820980,0.00301395,2637.9,2637.4,0.00568386]
[1724329821158,0.37903,2637.5,2637.4,0.00568386]
[1724329821960,11.06541,2637.5,2637.4,0.00568386]
[1724329822246,0.37904,2637.5,2637.3,0.37906]
[1724329822449,3.2078,2637.7,2636.9,3.2078]
[1724329822450,0.37902,2637.6,2636.9,3.2078]
[1724329822648,3.2078,2637.7,2637.2,0.37907]
[1724329822847,3.2078,2637.7,2636.6,4.20138625]
[1724329823047,3.2078,2637.4,2636.9,0.38479386]
[1724329823441,0.37911,2637.0,2636.9,0.00568386]
[1724329824147,0.94768,2637.3,2636.9,0.00568386]
[1724329824351,0.37911,2637.0,2636.9,0.00568386]
[1724329824750,4.17111,2637.0,2636.9,0.00568386]
[1724329825637,5.11888,2637.0,2636.9,0.00568386]
[1724329825837,0.94781,2636.9,2636.2,0.00346798]
[1724329826036,0.37917,2636.6,2636.2,0.00346798]
[1724329826243,0.37917,2636.6,2636.3,2.622]
[1724329826439,3.2078,2636.7,2636.3,3.00121]
[1724329826440,3.58696,2636.7,2636.3,3.00121]
[1724329826639,3.2078,2636.7,2636.3,3.00121]
[1724329826844,0.37917,2636.6,2636.3,2.622]
[1724329828248,3.58696,2636.7,2636.3,2.622]
[1724329828450,3.58696,2636.7,2636.3,3.0012]
[1724329829049,3.58696,2636.7,2636.3,2.622]
[1724329829248,3.58696,2636.7,2636.3,3.0012]
[1724329829455,3.2078,2636.7,2636.3,3.0012]
[1724329829661,3.2078,2636.7,2636.3,0.37921]
[1724329829662,3.58696,2636.7,2636.3,0.37921]
[1724329830046,3.2078,2636.7,2636.3,3.2078]
[1724329830257,3.2078,2636.7,2636.2,0.00915184]
[1724329830753,0.37921,2636.3,2636.2,0.00915184]
[1724329831250,3.2078,2636.7,2636.2,0.00915184]
[1724329831251,0.3792,2636.4,2636.2,0.00915184]
[1724329831756,0.37921,2636.3,2636.2,0.00915184]
[1724329835574,0.37918,2636.6,2636.2,0.00915184]
[1724329835746,3.58695,2636.7,2636.5,0.37917]
[1724329835952,3.2078,2636.7,2636.5,0.37917]
[1724329836159,3.2078,2636.7,2636.6,0.37916]
[1724329836346,0.00568386,2636.8,2636.7,0.37915]
[1724329836546,3.2078,2637.5,2636.7,0.37915]
[1724329836547,3.2078,2637.5,2636.7,9.74068]
[1724329836861,3.2078,2637.5,2636.6,3.2078]
[1724329836862,0.37907,2637.3,2637.0,0.3791]
[1724329837158,3.2078,2637.5,2636.6,3.2078]
[1724329837159,3.2078,2637.5,2636.9,0.37911]
[1724329837360,0.37908,2637.2,2636.9,0.37911]
[1724329837553,0.37909,2637.1,2636.9,0.37911]
[1724329837763,0.00568386,2637.3,2637.1,0.37908]
[1724329837954,0.00568386,2637.3,2636.5,3.61558625]